bitfinex-derivatives/quotes_BNBF0:USTF0_20250603
["timestamp","ask_amount","ask_price","bid_price","bid_amount"]
[1748964966625,1.48845351,668.47,668.03,0.29938775]
[1748964967218,1.48845351,668.49,668.03,0.29938775]
[1748964967523,1.48845351,668.48,668.03,0.29938775]
[1748964969125,1.48845351,668.49,668.03,0.29938775]
[1748964970418,0.29884645,669.24,668.03,0.29938775]
[1748964970419,1.48845351,668.48,668.03,0.29938775]
[1748964971723,1.48845351,668.47,668.03,0.29938775]
[1748964971924,1.48845351,668.46,668.03,0.29938775]
[1748964974927,1.48845351,668.45,668.03,0.29938775]
[1748964976922,1.48845351,668.44,668.03,0.29938775]
[1748964977121,2.22979277,668.58,668.03,0.29938775]
[1748964977122,1.48845351,668.45,668.03,0.29938775]
[1748964977428,1.48845351,668.46,668.03,0.29938775]
[1748964979231,1.48845351,668.44,668.03,0.29938775]
[1748964979430,1.48845351,668.46,668.03,0.29938775]
[1748964979728,1.48845351,668.45,668.03,0.29938775]
[1748964980224,1.48845351,668.46,668.03,0.29938775]
[1748964980929,1.48845351,668.45,668.03,0.29938775]
[1748964981325,1.48845351,668.46,668.03,0.29938775]
[1748964983031,1.48845351,668.45,668.03,0.29938775]
[1748964983432,1.48845351,668.46,668.03,0.29938775]
[1748964984237,1.48845351,668.45,668.03,0.29938775]
[1748964987031,1.48845351,668.43,668.03,0.29938775]
[1748964987230,0.29884645,669.24,668.03,0.29938775]
[1748964987231,1.48845351,668.42,668.03,0.29938775]
[1748964988528,1.11679225,668.28,668.03,0.29938775]
[1748964989133,1.11679225,668.26,668.05,0.47389089]
[1748964989333,1.11679225,668.26,668.06,0.47389089]
[1748964989534,1.11679225,668.26,668.05,0.47389089]
[1748964990330,1.11679225,668.26,668.04,0.47389089]
[1748964990534,1.11679225,668.26,668.05,0.47389089]
[1748964991333,1.11679225,668.26,668.09,0.47389089]
[1748964991529,1.48845351,668.39,668.09,0.47389089]
[1748964991736,1.11676532,668.26,668.07,0.47389089]
[1748964991936,1.11676532,668.24,668.06,0.47389089]
[1748964992440,1.11676532,668.24,668.08,0.47389089]
[1748964992640,1.11676532,668.24,668.06,0.47389089]
[1748964992843,1.11676532,668.24,668.07,0.47389089]
[1748964993340,1.11676532,668.24,668.1,0.47389089]
[1748964993641,1.11676532,668.25,668.1,0.47389089]
[1748964993835,1.11676532,668.25,668.07,0.47389089]
[1748964994235,1.11676532,668.25,668.04,0.47389089]
[1748964994438,1.11676532,668.26,668.11,0.47389089]
[1748964995043,3.73634326,669.1,668.1,0.47389089]
[1748964995044,1.11676532,668.25,668.1,0.47389089]
[1748964995241,1.11676532,668.25,668.11,0.47389089]
[1748964995442,1.48845351,668.4,668.11,0.47389089]
[1748964995744,1.11662129,668.26,668.11,0.47389089]
[1748964996239,1.11662129,668.26,668.12,0.47389089]
[1748964996540,1.11662129,668.26,668.11,0.47389089]
[1748964997142,1.11662129,668.25,668.11,0.47389089]
[1748964997439,1.11662129,668.25,668.12,0.47389089]
[1748964997644,1.11662129,668.25,668.11,0.47389089]
[1748964998440,1.11662129,668.25,668.1,0.47389089]
[1748964998640,1.11662129,668.26,668.11,0.47389089]
[1748964999040,1.11662129,668.26,668.12,0.47389089]
[1748964999242,1.11662129,668.28,668.03,0.29938775]
[1748964999447,1.11656025,668.28,668.03,0.29938775]
[1748965000045,1.48845351,668.43,668.03,0.29938775]
[1748965000046,1.11656025,668.27,668.03,0.29938775]
[1748965000242,1.11656025,668.28,668.03,0.29938775]
[1748965001547,1.11656025,668.27,668.03,0.29938775]
[1748965002046,1.11656025,668.28,668.03,0.29938775]
[1748965002847,1.11656025,668.29,668.03,0.29938775]
[1748965003046,1.48845351,668.44,668.03,0.29938775]
[1748965003047,1.11656025,668.28,668.03,0.29938775]
[1748965003344,1.11702408,668.28,668.03,0.29938775]
[1748965004347,1.11702408,668.27,668.03,0.29938775]
[1748965005643,1.11702408,668.26,668.03,0.29938775]
[1748965007244,1.11766419,668.26,668.03,0.29938775]
[1748965007545,1.11766419,668.25,668.03,0.29938775]
[1748965008149,3.73634326,669.2,668.03,0.29938775]
[1748965008150,1.11766419,668.26,668.03,0.29938775]
[1748965008345,1.48845351,668.42,668.03,0.29938775]
[1748965008346,1.11766419,668.25,668.03,0.29938775]
[1748965009149,1.11766419,668.24,668.03,0.29938775]
[1748965009346,1.11766419,668.23,668.03,0.29938775]
[1748965010256,1.11766419,668.22,668.03,0.29938775]
[1748965011151,1.48845351,668.37,668.03,0.29938775]
[1748965011354,1.11874329,668.2,668.03,0.29938775]
[1748965012353,1.11874329,668.19,668.03,0.29938775]
[1748965012553,1.11874329,668.18,668.03,0.29938775]
[1748965012752,1.11874329,668.18,668.05,0.47389089]
[1748965013252,1.48845351,668.33,668.03,0.29938775]
[1748965013253,1.11874329,668.17,668.03,0.29938775]
[1748965013650,1.11874329,668.16,668.03,0.29938775]
[1748965013847,1.11874329,668.12,668.05,0.47389089]
[1748965014154,1.48845351,668.23,668.1,0.47389089]
[1748965014348,0.29884645,669.24,667.84,0.47433656]
[1748965014349,1.48845351,668.17,667.84,0.47433656]
[1748965014552,1.12015672,668.05,667.82,0.47433656]
[1748965014747,1.12015672,668.05,667.84,0.47433656]
[1748965014952,3.73634326,668.76,667.83,0.47433656]
[1748965014953,1.48845351,668.15,667.83,0.47433656]
[1748965015152,1.12017326,668.03,667.82,0.47433656]
[1748965015353,1.12017326,668.03,667.83,0.47433656]
[1748965015546,1.12017326,668.03,667.81,0.47433656]
[1748965015749,1.12017326,668.02,667.81,0.47433656]
[1748965016152,1.12017326,667.99,667.81,0.47433656]
[1748965016353,1.12017326,667.98,667.8,0.47433656]
[1748965016552,1.12017326,667.98,667.5,1.11826562]
[1748965016553,1.12017326,667.98,667.79,0.47433656]
[1748965017350,1.12017326,667.97,667.79,0.47433656]
[1748965017548,1.12017326,667.97,667.78,0.47433656]
[1748965018354,1.12017326,667.96,667.78,0.47433656]
[1748965018548,1.12017326,667.96,667.77,0.47433656]
[1748965018754,1.12017326,667.97,667.77,0.47433656]
[1748965018953,1.12085497,667.97,667.77,0.47433656]
[1748965019153,1.12085497,667.97,667.78,0.71234003]
[1748965019355,1.12085497,667.95,667.77,0.47433656]
[1748965019554,1.12085497,667.96,667.77,0.47433656]
[1748965019755,1.12085497,667.95,667.76,0.47433656]
[1748965020251,1.12085497,667.95,667.65,0.47433656]
[1748965020454,1.12085497,667.99,667.64,0.47433656]
[1748965020650,1.12085497,667.99,667.89,0.47563587]
[1748965021053,1.12085497,667.99,667.88,0.47563587]
[1748965021452,1.48845351,668.13,667.88,0.47563587]
[1748965021757,1.12117971,667.99,667.88,0.47563587]
[1748965022456,1.12117971,667.99,667.87,0.47563587]
[1748965022658,1.12117971,668.0,667.87,0.47563587]
[1748965023358,1.12117971,667.98,667.85,0.47563587]
[1748965023560,1.12117971,667.95,667.83,0.47563587]
[1748965023752,1.12117971,667.96,667.82,0.47563587]
[1748965024252,1.12117971,667.96,667.81,0.47563587]
[1748965024758,1.12117971,667.96,667.8,0.47563587]
[1748965025259,1.48845351,668.11,667.8,0.47563587]
[1748965025558,1.12058375,668.07,667.68,0.47563587]
[1748965025754,1.12058375,668.07,667.67,0.47563587]
[1748965025957,1.12058375,668.07,667.68,0.71215459]
[1748965026156,1.12058375,668.07,667.69,0.71215459]
[1748965026357,1.12058375,668.16,667.6,0.47563587]
[1748965026550,1.12058375,668.15,667.61,1.48717929]
[1748965026751,1.12058375,668.15,667.61,0.77521196]
[1748965027158,1.12058375,668.15,667.62,0.29957161]
[1748965027560,1.12058375,668.16,667.62,0.29957161]
[1748965027857,1.12058375,668.15,667.63,0.71196427]
[1748965028060,1.12058375,668.15,667.64,1.0115269]
[1748965028262,1.12058375,668.15,667.64,0.29956263]
[1748965029156,1.12028307,668.18,667.69,0.47563587]
[1748965029457,1.12028307,668.18,667.7,0.29953571]
[1748965029654,1.12028307,668.17,667.71,0.71255215]
[1748965029855,1.12028307,668.19,667.72,0.29952674]
[1748965030057,1.12028307,668.2,667.72,0.29952674]
[1748965030451,1.12028307,668.21,667.73,0.71250261]
[1748965030657,1.12028307,668.26,667.74,0.29951777]
[1748965031254,1.12028307,668.27,667.74,0.29951777]
[1748965031459,1.12028307,668.28,667.74,0.29951777]
[1748965032255,1.12028307,668.29,667.74,0.29951777]
[1748965032560,1.12028307,668.27,667.82,0.47563587]
[1748965032856,1.11990487,668.27,667.83,0.29947741]
[1748965033356,1.11990487,668.27,667.84,0.71283468]
[1748965033663,1.11990487,668.27,667.85,0.29946844]
[1748965033960,1.11990487,668.26,667.85,0.29946844]
[1748965034459,1.11990487,668.26,667.86,0.71268135]
[1748965034660,1.11990487,668.26,667.87,1.0121404]
[1748965034861,1.11990487,668.26,667.88,0.29945499]
[1748965035360,1.11975731,668.26,667.88,0.29945499]
[1748965035561,1.11975731,668.26,667.89,0.71268278]
[1748965035756,1.11975731,668.26,667.9,1.01212979]
[1748965036061,1.11975731,668.26,667.91,1.01212645]
[1748965036255,1.11975731,668.26,667.92,0.71319441]
[1748965036462,1.11975731,668.26,667.91,0.29944154]
[1748965037660,1.11975731,668.26,667.92,0.71310631]
[1748965037855,1.11975731,668.26,667.91,0.29944154]
[1748965039162,1.11975731,668.21,667.98,0.47563587]
[1748965039362,1.11975731,668.22,667.98,0.47563587]
[1748965039563,1.11975731,668.23,667.97,0.47563587]
[1748965040364,1.11975731,668.24,667.91,0.29944154]
[1748965040761,1.11939578,668.25,667.91,0.29944154]
[1748965042465,1.11939578,668.24,667.91,0.29944154]
[1748965042661,1.11939578,668.22,667.91,0.29944154]
[1748965044768,1.11931914,668.22,667.91,0.29944154]
[1748965045262,1.48845351,668.38,667.91,0.29944154]
[1748965045263,1.11931914,668.21,667.91,0.29944154]
[1748965046062,1.11931914,668.22,667.91,0.29944154]
[1748965048268,1.11931914,668.23,667.91,0.29944154]
[1748965048671,1.11924022,668.23,667.91,0.29944154]
[1748965049170,1.11924022,668.22,667.91,0.29944154]
[1748965050169,1.11924022,668.21,667.91,0.29944154]
[1748965050567,1.11924022,668.22,667.91,0.29944154]
[1748965050769,2.22979277,668.53,667.91,0.29944154]
[1748965050770,1.11924022,668.21,667.91,0.29944154]
[1748965051771,1.11924022,668.22,667.91,0.29944154]
[1748965052367,1.11924022,668.21,667.91,0.29944154]
[1748965053466,1.48845351,668.36,667.91,0.29944154]
[1748965053467,1.11924022,668.2,667.91,0.29944154]
[1748965054167,1.11924022,668.2,667.94,0.47563587]
[1748965054872,1.11924022,668.2,667.91,0.77507741]
[1748965055072,1.11924022,668.21,667.91,0.77507741]
[1748965055372,1.11924022,668.22,667.91,0.29944154]
[1748965055573,1.11924022,668.23,667.91,0.29944154]
[1748965055972,1.11924022,668.24,667.91,0.29944154]
[1748965056674,1.11910215,668.24,667.91,0.29944154]
[1748965057472,1.11910215,668.23,667.91,0.29944154]
[1748965058775,1.11910215,668.24,667.91,0.29944154]
[1748965059275,1.11910215,668.25,667.91,0.29944154]
[1748965059474,1.11910215,668.24,667.91,0.29944154]
[1748965060069,1.11910215,668.25,667.91,0.29944154]
[1748965060470,1.11903284,668.25,667.91,0.29944154]
[1748965060675,1.11903284,668.25,667.91,0.77507741]
[1748965061776,1.11903284,668.25,667.92,0.47563587]
[1748965062672,1.11903284,668.25,667.93,0.47563587]
[1748965062870,1.11903284,668.25,667.92,0.47563587]
[1748965063076,1.11903284,668.24,667.92,0.47563587]
[1748965063278,1.11903284,668.24,667.93,0.47563587]
[1748965063675,1.11903284,668.24,667.91,0.29944154]
[1748965063676,1.11903284,668.24,667.95,0.47563587]
[1748965064472,1.11898555,668.24,667.95,0.47563587]
[1748965064675,1.11898555,668.24,667.97,0.47563587]
[1748965065077,1.11898555,668.23,668.03,0.47563587]
[1748965065475,1.11898555,668.22,668.1,0.47563587]
[1748965066476,1.11898555,668.21,668.11,0.47563587]
[1748965067083,1.11898555,668.21,668.1,0.47563587]
[1748965067372,1.11898555,668.21,667.91,0.29944154]
[1748965067373,1.11898555,668.2,668.09,0.47563587]
[1748965067575,1.11898555,668.18,668.08,0.47563587]
[1748965067774,1.11898555,668.18,668.06,0.47563587]
[1748965068175,1.11898555,668.17,668.03,0.47563587]
[1748965068380,1.11898555,668.14,668.12,0.47563587]
[1748965068581,1.11898555,668.13,668.08,0.47563587]
[1748965068780,1.11911923,668.11,668.05,0.47563587]
[1748965069183,1.11911923,668.11,668.04,0.47563587]
[1748965069480,1.11911923,668.11,668.03,0.47563587]
[1748965070582,1.11911923,668.11,668.02,0.47563587]
[1748965070782,1.11911923,668.1,668.02,0.47563587]
[1748965070977,1.11911923,668.1,668.01,0.47563587]
[1748965071679,1.11911923,668.1,668.0,0.47563587]
[1748965072476,1.11913027,668.06,667.96,0.47563587]
[1748965072681,1.11913027,668.06,667.94,0.47563587]
[1748965073082,1.11913027,668.07,667.95,0.47563587]
[1748965073284,1.11913027,668.06,667.95,0.47563587]
[1748965073481,1.11913027,668.06,667.91,0.29944154]
[1748965073482,1.11913027,668.06,667.94,0.47563587]
[1748965073786,1.11913027,668.06,667.91,0.29944154]
[1748965073787,1.11913027,668.04,667.91,0.29944154]
[1748965074086,1.11913027,668.04,668.03,0.47488421]
[1748965074484,1.48845351,668.16,667.91,0.29944154]
[1748965074686,1.48845351,668.14,668.02,0.47481575]
[1748965074882,1.48845351,668.14,668.01,0.47481575]
[1748965075087,1.48845351,668.13,668.01,0.47481575]
[1748965075281,1.11908087,668.03,667.91,0.29944154]
[1748965075681,1.11908087,668.04,667.91,0.29944154]
[1748965075985,1.11904576,668.04,667.91,0.29944154]
[1748965076386,1.11904438,668.04,667.91,0.29944154]
[1748965076687,1.11904438,668.05,667.91,0.29944154]
[1748965077588,5.23088057,669.2,667.91,0.29944154]
[1748965077589,1.11904438,668.07,667.91,0.29944154]
[1748965079384,1.11904438,668.08,667.91,0.29944154]
[1748965079587,1.11904438,668.09,667.91,0.29944154]
[1748965080289,1.11904696,668.1,667.91,0.29944154]
[1748965080490,1.11904696,668.12,667.91,0.29944154]
[1748965080688,1.11904696,668.11,667.91,0.29944154]
[1748965080991,1.11904696,668.12,667.91,0.29944154]
[1748965081188,1.11904696,668.13,667.91,0.29944154]
[1748965082282,1.11904696,668.12,667.91,0.29944154]
[1748965082588,1.11904696,668.1,667.99,0.47481575]
[1748965082788,1.11915687,668.1,667.99,0.47481575]
[1748965084486,1.11915687,668.09,667.99,0.47481575]
[1748965084990,1.11915687,668.1,668.03,0.47481575]
[1748965085184,3.73634326,668.86,668.02,0.47481575]
[1748965085185,1.11915687,668.08,668.02,0.47481575]
[1748965086088,1.48845351,668.2,668.03,0.47481575]
[1748965086089,1.11915687,668.07,668.03,0.47481575]
[1748965086594,1.1196205,668.07,668.03,0.47481575]
[1748965086796,1.1196205,668.07,668.04,0.47481575]
[1748965087392,1.1196205,668.07,668.05,0.47481575]
[1748965087696,1.1196205,668.07,668.04,0.47481575]
[1748965087892,1.1196205,668.07,668.05,0.47481575]
[1748965088092,1.1196205,668.08,668.05,0.47481575]
[1748965088593,1.1196205,668.08,668.06,0.47481575]
[1748965089092,1.1196205,668.07,668.05,0.47481575]
[1748965089297,1.48845351,668.18,668.02,0.47481575]
[1748965089498,1.11964241,668.05,668.02,0.47481575]
[1748965089898,1.11964241,668.05,667.91,0.29944154]
[1748965090097,1.11964241,668.04,667.91,0.29944154]
[1748965090294,1.11964241,668.06,667.91,0.29944154]
[1748965090492,1.48845351,668.2,667.91,0.29944154]
[1748965090697,1.11961892,668.06,667.91,0.29944154]
[1748965092696,1.11961892,668.05,667.91,0.29944154]
[1748965093294,5.23088057,669.21,667.91,0.29944154]
[1748965093295,1.11961892,668.01,667.91,0.29944154]
[1748965093598,1.11961892,668.0,667.91,0.29944154]
[1748965094201,1.11961892,667.99,667.91,0.29944154]
[1748965094402,1.1194189,667.99,667.91,0.29944154]
[1748965095402,1.48845351,668.14,667.91,0.29944154]
[1748965095600,1.11929328,667.99,667.91,0.29944154]
[1748965096294,1.11929328,668.0,667.91,0.29944154]
[1748965097496,1.11929328,668.01,667.91,0.29944154]
[1748965097702,1.11929328,668.0,667.91,0.29944154]
[1748965099302,1.11929328,668.01,667.91,0.29944154]
[1748965099799,1.11929328,667.99,667.91,0.29944154]
[1748965101102,1.11929328,667.98,667.91,0.29944154]
[1748965101303,1.11929328,667.99,667.91,0.29944154]
[1748965101902,1.11929328,667.98,667.91,0.29944154]
[1748965102103,1.48845351,668.13,667.91,0.29944154]
[1748965102404,1.11882165,667.99,667.91,0.29944154]
[1748965103498,1.11882165,668.0,667.91,0.29944154]
[1748965105199,1.11882165,668.02,667.91,0.29944154]
[1748965105895,1.48845351,668.17,667.91,0.29944154]
[1748965106105,1.11854349,668.02,667.91,0.29944154]
[1748965106303,1.11854349,668.04,667.91,0.29944154]
[1748965106604,1.11854349,668.09,667.91,0.29944154]
[1748965107205,1.11854349,668.1,667.91,0.29944154]
[1748965107805,1.11854349,668.11,667.91,0.29944154]
[1748965108705,1.11854349,668.1,667.91,0.29944154]
[1748965109704,1.11851873,668.11,667.91,0.29944154]
[1748965109902,1.11851873,668.1,667.91,0.29944154]
[1748965111007,1.11851873,668.12,667.91,0.29944154]
[1748965111208,1.11851873,668.09,667.91,0.29944154]
[1748965111407,3.73634326,669.26,667.91,0.29944154]
[1748965111408,1.11851873,668.1,667.91,0.29944154]
[1748965112006,1.11851873,668.09,667.91,0.29944154]
[1748965112303,1.11851873,668.1,667.91,0.29944154]
[1748965112808,1.11851873,668.09,667.91,0.29944154]
[1748965113108,1.11851873,668.1,667.91,0.29944154]
[1748965113804,3.73634326,669.44,667.91,0.29944154]
[1748965113805,1.11851873,668.09,667.91,0.29944154]
[1748965115609,1.11851873,668.08,667.91,0.29944154]
[1748965117009,1.11851873,668.08,667.22,0.47511021]
[1748965117204,1.11851873,668.08,667.24,0.29974222]
[1748965117410,1.48845351,668.3,667.24,0.29974222]
[1748965117714,1.11866312,668.07,667.25,0.47511021]
[1748965117910,1.11866312,668.07,667.14,0.26056095]
[1748965117911,1.11866312,668.07,667.27,0.29972874]
[1748965118209,1.11866312,668.07,667.27,0.77483895]
[1748965118609,1.11866312,668.07,667.28,0.29972425]
[1748965119010,1.11866312,668.07,667.29,0.71785686]
[1748965119211,1.11866312,668.07,667.3,0.29971527]
[1748965119408,1.11866312,668.07,667.31,0.71817424]
[1748965119612,1.11866312,668.07,667.32,0.29970628]
[1748965119908,1.11866312,668.06,667.32,0.29970628]
[1748965120310,1.11866312,668.07,667.32,0.29970628]
[1748965120806,1.11866312,668.06,667.32,0.29970628]
[1748965121013,1.11866312,668.01,667.59,0.47511021]
[1748965121506,1.48845351,668.18,667.6,0.47511021]
[1748965121707,3.73634326,669.02,667.6,0.47511021]
[1748965121708,1.11890345,668.0,667.6,0.47511021]
[1748965121912,1.11890345,668.0,667.61,0.71817303]
[1748965122210,1.11890345,668.0,667.63,0.47511021]
[1748965122511,1.11890345,668.0,667.64,0.47511021]
[1748965123209,1.11890345,667.99,667.64,0.47511021]
[1748965123406,1.11890345,667.99,667.65,0.47511021]
[1748965123907,1.11890345,668.0,667.65,0.47511021]
[1748965124109,1.11890345,667.99,667.66,0.71824294]
[1748965124310,1.11890345,667.97,667.79,0.47511021]
[1748965124507,1.11890345,667.97,667.8,0.47511021]
[1748965124710,1.11890345,667.96,667.8,0.47511021]
[1748965125311,1.11890345,667.96,667.81,0.47511021]
[1748965125512,1.11933812,667.96,667.81,0.47511021]
[1748965125712,5.23088057,669.12,667.82,0.47511021]
[1748965125713,1.11933812,667.97,667.82,0.47511021]
[1748965126015,1.11933812,667.97,667.81,0.47511021]
[1748965126214,1.11933812,667.96,667.81,0.47511021]
[1748965126414,1.11933812,667.96,667.82,0.47511021]
[1748965126613,1.11933812,667.97,667.8,0.47511021]
[1748965127114,1.11933812,667.96,667.8,0.47511021]
[1748965127613,1.11933812,667.96,667.81,0.47511021]
[1748965127912,1.11933812,667.96,667.83,0.47511021]
[1748965128113,3.73634326,668.83,667.84,0.47511021]
[1748965128114,1.11933812,667.97,667.84,0.47511021]
[1748965128314,1.11933812,667.98,667.82,0.47511021]
[1748965128609,1.11933812,667.98,667.84,0.47511021]
[1748965129314,1.11981875,667.98,667.84,0.47511021]
[1748965129514,1.11981875,667.99,667.82,0.47511021]
[1748965129712,1.11981875,668.01,667.84,0.47511021]
[1748965130110,1.11981875,668.0,667.88,0.47511021]
[1748965130417,1.11981875,668.01,667.89,0.47511021]
[1748965130614,1.11981875,668.01,667.32,0.29970628]
[1748965130615,1.11981875,668.03,667.91,0.47511021]
[1748965132719,3.73634326,668.9,667.82,0.47511021]
[1748965132720,1.11981875,668.06,667.82,0.47511021]
[1748965132921,5.23088057,669.18,667.86,0.47511021]
[1748965132922,1.11981875,668.1,667.86,0.47511021]
[1748965133121,2.22979277,668.41,667.86,0.47511021]
[1748965133122,1.11981875,668.09,667.86,0.47511021]
[1748965133316,1.48845351,668.25,667.85,0.47511021]
[1748965133520,1.11981122,668.1,667.85,0.47511021]
[1748965133819,1.11981122,668.1,667.9,0.47511021]
[1748965134213,1.11981122,668.1,667.89,0.47511021]
[1748965134417,5.23088057,669.36,667.32,0.29970628]
[1748965134418,1.11981122,668.05,667.83,0.47433656]
[1748965134619,1.11981122,668.04,667.84,0.47433656]
[1748965134822,5.23088057,668.94,667.85,0.47433656]
[1748965134823,1.11981122,668.01,667.85,0.47433656]
[1748965135220,1.11981122,668.0,667.85,0.47433656]
[1748965135521,1.11981122,668.01,667.84,0.47433656]
[1748965135715,1.11981122,668.02,667.79,0.47433656]
[1748965135918,1.11981122,668.02,667.8,0.47433656]
[1748965136421,1.11981122,668.05,667.71,0.47433656]
[1748965136616,1.11981122,668.05,667.72,0.29952674]
[1748965136819,1.11981122,668.06,667.72,0.29952674]
[1748965137019,1.11981122,668.05,667.73,0.71522919]
[1748965137220,1.48845351,668.18,667.74,1.01475245]
[1748965137422,1.48845351,668.18,665.77,0.96843714]
[1748965137423,1.11956021,668.06,667.75,0.29951329]
[1748965137820,1.11956021,668.05,667.75,0.29951329]
[1748965138424,1.11956021,668.05,667.76,0.71537545]
[1748965138619,1.11956021,668.06,667.76,0.2995088]
[1748965138820,1.11956021,668.06,668.05,0.47532424]
[1748965139123,1.11956021,668.06,667.76,0.2995088]
[1748965139322,5.23088057,669.05,667.97,0.47531563]
[1748965139323,1.11956021,668.07,667.97,0.47531563]
[1748965139919,1.11956021,668.07,667.96,0.47531563]
[1748965140116,1.11956021,668.07,667.97,0.47531563]
[1748965140319,1.11956021,668.07,667.76,0.2995088]
[1748965140320,1.11956021,668.07,667.96,0.47531563]
[1748965141522,1.11956021,668.05,667.91,0.47531563]
[1748965141723,1.11956021,668.03,667.9,0.47531563]
[1748965142422,1.11956021,668.03,667.89,0.47531563]
[1748965143618,1.11956021,668.18,667.76,0.2995088]
[1748965143822,1.48845351,668.48,667.76,0.2995088]
[1748965144025,1.11943169,668.24,667.76,0.2995088]
[1748965144623,1.11943169,668.25,667.77,0.7137015]
[1748965144823,1.11943169,668.25,667.77,1.01320582]
[1748965145125,1.11943169,668.24,667.78,1.01322507]
[1748965145423,1.11943169,668.24,667.79,0.29949535]
[1748965145723,1.11933903,668.24,667.8,0.71369104]
[1748965145921,1.11933903,668.24,667.8,0.29949086]
[1748965146821,1.11933903,668.25,667.8,0.29949086]
[1748965147018,1.11933903,668.24,667.8,0.29949086]
[1748965147920,1.48845351,668.49,667.8,0.29949086]
[1748965148121,1.11926488,668.24,667.8,0.29949086]
[1748965148320,1.11926488,668.25,667.8,0.29949086]
[1748965151826,1.48845351,668.5,667.8,0.29949086]
[1748965152024,1.11902735,668.25,667.8,0.29949086]
[1748965153529,1.11902735,668.15,667.8,0.29949086]
[1748965154029,1.11902735,668.14,667.8,0.29949086]
[1748965154229,1.11902735,668.15,667.8,0.29949086]
[1748965154629,1.11902735,668.13,667.8,0.77480649]
[1748965154931,1.11902735,668.12,667.83,0.47531563]
[1748965155130,1.11902735,668.11,667.86,0.47531563]
[1748965155330,1.11902735,668.11,667.88,0.47531563]
[1748965155525,1.48845351,668.25,667.9,0.47531563]
[1748965155730,1.11881604,668.11,667.9,0.47531563]
[1748965155928,1.48845351,668.25,667.9,0.47531563]
[1748965156129,1.11881596,668.11,667.9,0.47531563]
[1748965156428,1.11881596,668.11,667.91,0.47531563]
[1748965157435,1.11881596,668.11,667.92,0.47531563]
[1748965157634,1.48845351,668.2,668.08,0.47531563]
[1748965158227,1.48845351,668.2,668.09,0.47531563]
[1748965159336,1.11869736,668.1,667.99,0.47531563]
[1748965159835,1.48845351,668.24,667.99,0.47531563]
[1748965160038,1.11868147,668.1,667.99,0.47531563]
[1748965160334,1.11868147,668.1,668.0,0.47531563]
[1748965160635,1.11868147,668.1,668.01,0.47531563]
[1748965160828,1.11868147,668.11,668.01,0.47531563]
[1748965161033,1.11868147,668.1,668.01,0.47531563]
[1748965161337,1.11868147,668.1,668.02,0.47531563]
[1748965161636,1.11868147,668.11,667.99,0.47531563]
[1748965162335,1.11868147,668.11,668.01,0.47531563]
[1748965163435,1.11868147,668.11,668.02,0.47531563]
[1748965164033,1.11864881,668.11,668.02,0.47531563]
[1748965164534,1.11864881,668.11,668.04,0.47531563]
[1748965165036,1.11864881,668.12,668.03,0.47531563]
[1748965165238,1.11864881,668.12,668.04,0.47531563]
[1748965165433,1.11864881,668.12,668.05,0.47531563]
[1748965166435,1.11864881,668.12,668.06,0.47531563]
[1748965166633,1.11864881,668.12,667.8,0.29949086]
[1748965166634,1.11864881,668.14,668.07,0.47531563]
[1748965167331,1.11864881,668.15,668.08,0.47531563]
[1748965167536,1.11864881,668.14,667.8,0.29949086]
[1748965167735,1.11864881,668.16,667.87,0.47433656]
[1748965167933,1.11847543,668.16,667.86,0.47433656]
[1748965168335,1.11847543,668.17,667.87,0.47433656]
[1748965168538,1.11847543,668.18,667.88,0.71694035]
[1748965168736,1.11847543,668.18,667.87,0.47433656]
[1748965168936,1.11847543,668.18,667.82,0.47433656]
[1748965169140,1.11847543,668.18,667.82,0.77381845]
[1748965169340,1.11847543,668.18,667.83,0.71696667]
[1748965169537,1.11847543,668.18,667.82,0.29948189]
[1748965169743,1.11847543,668.19,668.16,0.47589856]
[1748965169940,1.11847543,668.19,668.17,0.47589856]
[1748965170338,1.11847543,668.21,667.82,0.29948189]
[1748965170542,1.11847543,668.23,668.16,0.47586484]
[1748965171439,1.11847543,668.23,668.15,0.47586484]
[1748965171644,1.11847543,668.22,668.15,0.47586484]
[1748965171847,1.11847543,668.22,668.16,0.47586484]
[1748965172044,1.11804334,668.22,668.16,0.47586484]
[1748965172445,1.11804334,668.22,668.15,0.47586484]
[1748965172746,1.11804334,668.21,668.15,0.47586484]
[1748965172942,1.11804334,668.21,667.82,0.29948189]
[1748965172943,1.11804334,668.21,668.14,0.47586484]
[1748965173148,1.11804334,668.19,668.12,0.47586484]
[1748965173350,1.11804334,668.18,668.12,0.47586484]
[1748965173544,1.11804334,668.15,668.1,0.47586484]
[1748965173848,1.11804334,668.14,668.1,0.47586484]
[1748965174245,1.11804334,668.14,668.09,0.47586484]
[1748965174448,1.11804334,668.14,668.04,0.47586484]
[1748965174750,1.11804334,668.15,668.04,0.47586484]
[1748965176151,1.11831771,668.15,668.04,0.47586484]
[1748965176350,1.11831771,668.14,668.04,0.47586484]
[1748965176552,1.11831771,668.14,668.08,0.47586484]
[1748965176752,1.11831771,668.12,667.91,0.47586484]
[1748965176948,1.11831771,668.11,667.91,0.47586484]
[1748965177753,1.11831771,668.1,667.9,0.47586484]
[1748965178152,1.11831771,668.17,667.9,0.47586484]
[1748965178345,1.11831771,668.17,667.82,0.29948189]
[1748965178749,1.11831771,668.16,667.82,0.29948189]
[1748965180054,1.11885294,668.16,667.82,0.29948189]
[1748965181352,1.11885294,668.15,667.82,0.29948189]